fUST/lending_fUST_20250809
["ID","MTS","AMOUNT","RATE_DAILY","PERIOD"]
[378049966,1754696969934,-460.0,0.00022235,2]
[378049967,1754696969955,-460.0,0.00022235,2]
[378049968,1754696969980,-460.0,0.00022235,2]
[378049969,1754696970001,-460.0,0.00022235,2]
[378049970,1754696970029,-460.0,0.00022235,2]
[378049971,1754696970050,-460.0,0.00022235,2]
[378049972,1754696970072,-460.0,0.00022235,2]
[378049973,1754696970094,-460.0,0.00022235,2]
[378049974,1754696970116,-470.99,0.00022235,2]
[378049975,1754696970138,-581.24,0.00022235,2]
[378049976,1754696970160,-586.4,0.00022235,2]
[378049977,1754696970181,-460.0,0.00022235,2]
[378049978,1754696970203,-460.0,0.00022235,2]
[378049979,1754696970226,-470.83,0.00022235,2]
[378049980,1754696970247,-485.98220917,0.00022235,2]
[378049981,1754696970268,-460.0,0.00022235,2]
[378049982,1754696970290,-460.0,0.00022235,2]
[378049983,1754696970311,-460.0,0.00022235,2]
[378049984,1754696970332,-564.73,0.00022235,2]
[378049985,1754696970353,-460.0,0.00022235,2]
[378049986,1754696970374,-460.0,0.00022235,2]
[378049987,1754696970398,-288.4083232,0.00022235,2]
[378049988,1754696970417,-283.57,0.00022235,2]
[378049989,1754696970438,-470.32,0.00022235,2]
[378049990,1754696970459,-460.0,0.00022235,2]
[378049991,1754696970481,-460.0,0.00022235,2]
[378049992,1754696970502,-460.0,0.00022235,2]
[378049993,1754696970527,-460.0,0.00022235,2]
[378049994,1754696970549,-460.0,0.00022235,2]
[378049995,1754696970570,-207.72,0.00022235,2]
[378049996,1754696970591,-460.0,0.00022235,2]
[378049997,1754696970613,-1108.77,0.00022235,2]
[378049998,1754696970634,-460.0,0.00022235,2]
[378049999,1754696970656,-460.0,0.00022235,2]
[378050000,1754696970677,-460.0,0.00022235,2]
[378050001,1754696970699,-460.0,0.00022235,2]
[378050002,1754696970718,-460.0,0.00022235,2]
[378050003,1754696970738,-500.0,0.00022273,2]
[378050004,1754696970758,-500.0,0.00022273,2]
[378050005,1754696970966,460.0,0.00022234,2]
[378050006,1754696981211,182.442316,0.00021834,2]
[378050007,1754696981240,587.89,0.00022234,2]
[378050008,1754696981435,460.0,0.00022235,2]
[378050009,1754696982623,460.0,0.00022235,2]
[378050010,1754696999163,561.96,0.00022235,2]
[378050011,1754697003241,460.0,0.00022235,2]
[378050012,1754697003971,460.0,0.00022234,2]
[378050013,1754697006485,460.0,0.00022234,2]
[378050014,1754697014867,460.0,0.00022235,2]
[378050015,1754697025175,541.2,0.00022235,2]
[378050060,1754697032195,-724.44,0.00022508,2]
[378050062,1754697032204,-212.95,0.00022508,2]
[378050064,1754697032213,-587.89,0.00022508,2]
[378050066,1754697032222,-179.09386514,0.00022508,2]
[378050068,1754697032237,-120.90613486,0.00022508,2]
[378050069,1754697032247,-460.0,0.00022508,2]
[378050070,1754697032257,-460.0,0.00022508,2]
[378050071,1754697032266,-214.1164522,0.00022509,2]
[378050072,1754697032286,-245.8835478,0.00022509,2]
[378050073,1754697032296,-460.0,0.00022509,2]
[378050074,1754697032306,-460.0,0.00022509,2]
[378050075,1754697032316,-460.0,0.00022509,2]
[378050076,1754697032326,-460.0,0.00022509,2]
[378050077,1754697032335,-460.0,0.00022509,2]
[378050078,1754697032345,-273.35,0.00022509,2]
[378050079,1754697032354,-460.0,0.00022509,2]
[378050080,1754697032364,-460.0,0.00022509,2]
[378050081,1754697032373,-602.09,0.00022509,2]
[378050082,1754697032382,-460.0,0.00022509,2]
[378050083,1754697032391,-460.0,0.00022509,2]
[378050084,1754697032400,-1108.77,0.00022509,2]
[378050085,1754697032409,-460.0,0.00022509,2]
[378050086,1754697032419,-126.46952679,0.00022509,2]
[378050087,1754697032430,-333.53047321,0.00022509,2]
[378050088,1754697032440,-460.0,0.00022509,2]
[378050089,1754697032449,-460.0,0.00022509,2]
[378050090,1754697032458,-460.0,0.00022509,2]
[378050091,1754697032467,-561.96,0.00022509,2]
[378050092,1754697032477,-460.0,0.00022509,2]
[378050093,1754697032486,-541.2,0.00022509,2]
[378050094,1754697032496,-174.60952679,0.00022683,2]
[378050095,1754697032507,-336.07146683,0.00022683,2]
[378050096,1754697032517,-475.58606155,0.00022772,2]
[378050097,1754697032526,-245.65820441,0.00022774,2]
[378050098,1754697032535,-500.0,0.00022781,2]
[378050099,1754697032544,-398.78486814,0.00022781,2]
[378050100,1754697032553,-342.54016498,0.00022781,2]
[378050101,1754697032564,-196.27134133,0.00022781,2]
[378050102,1754697032573,-426.76800908,0.00022782,2]
[378050103,1754697034178,527.82,0.00022235,2]
[378050110,1754697038029,-297.67199092,0.00022782,2]
[378050111,1754697038038,-587.89,0.00022782,2]
[378050113,1754697038048,-460.0,0.00022782,2]
[378050114,1754697038057,-460.0,0.00022782,2]
[378050115,1754697038071,-460.0,0.00022783,2]
[378050116,1754697038080,-460.0,0.00022783,2]
[378050117,1754697038089,-460.0,0.00022783,2]
[378050118,1754697038098,-460.0,0.00022783,2]
[378050119,1754697038108,-2.19347808,0.00022783,2]
[378050120,1754697038124,-457.80652192,0.00022783,2]
[378050122,1754697038134,-460.0,0.00022783,2]
[378050123,1754697038144,-154.21744817,0.00022783,2]
[378050125,1754697038155,-305.78255183,0.00022783,2]
[378050126,1754697038164,-960.30683462,0.00022783,2]
[378050127,1754697038175,-148.46316538,0.00022783,2]
[378050128,1754697038184,-460.0,0.00022783,2]
[378050129,1754697038193,-460.0,0.00022783,2]
[378050130,1754697038203,-44.94631228,0.00022783,2]
[378050131,1754697038214,-293.999998,0.00022783,2]
[378050133,1754697039480,-121.05368972,0.00022783,2]
[378050134,1754697039489,-460.0,0.00022783,2]
[378050135,1754697039498,-490.25180328,0.00022783,2]
[378050136,1754697039509,-71.70819672,0.00022783,2]
[378050137,1754697039518,-460.0,0.00022783,2]
[378050138,1754697039527,-541.2,0.00022783,2]
[378050139,1754697039536,-220.91418075,0.00022821,2]
[378050140,1754697039548,-779.08581925,0.00022821,2]
[378050141,1754697039558,-500.0,0.00022892,2]
[378050142,1754697039567,-72.02870187,0.00022892,2]
[378050152,1754697040329,-203.14386569,0.00022892,2]
[378050153,1754697040339,-460.0,0.0002293,2]
[378050154,1754697040348,-460.0,0.0002293,2]
[378050155,1754697040357,-460.0,0.0002293,2]
[378050156,1754697040366,-500.0,0.00022973,2]
[378050157,1754697040376,-300.71,0.00023,2]
[378050158,1754697040385,-370.55393341,0.00023014,2]
[378050159,1754697040394,-500.0,0.00023014,2]
[378050160,1754697040403,-237.9010946,0.00023028,2]
[378050161,1754697040413,-260.0,0.00023055,2]
[378050162,1754697040422,-500.0,0.00023055,2]
[378050163,1754697040431,-500.0,0.00023055,2]
[378050164,1754697040441,-395.27763195,0.00023055,2]
[378050165,1754697040450,-500.0,0.00023055,2]
[378050166,1754697040459,-168.91347435,0.00023055,2]
[378050167,1754697040471,-331.08652565,0.00023055,2]
[378050168,1754697040480,-500.0,0.00023055,2]
[378050169,1754697040490,-500.0,0.00023055,2]
[378050170,1754697040499,-518.37193427,0.00023055,2]
[378050171,1754697040509,-500.0,0.00023055,2]
[378050172,1754697040519,-500.0,0.00023055,2]
[378050173,1754697040528,-500.0,0.00023055,2]
[378050174,1754697040537,-500.0,0.00023055,2]
[378050175,1754697040547,-523.48479785,0.00023055,2]
[378050176,1754697040556,-500.0,0.00023055,2]
[378050177,1754697040565,-500.0,0.00023055,2]
[378050178,1754697040574,-500.0,0.00023055,2]
[378050179,1754697040584,-500.0,0.00023055,2]
[378050180,1754697040593,-500.0,0.00023055,2]
[378050181,1754697040602,-500.0,0.00023055,2]
[378050182,1754697040611,-500.0,0.00023055,2]
[378050183,1754697040620,-500.0,0.00023055,2]
[378050184,1754697040630,-500.0,0.00023055,2]
[378050185,1754697040639,-192.50112856,0.00023055,2]
[378050186,1754697040648,-460.0,0.00023056,2]
[378050187,1754697040658,-460.0,0.00023056,2]
[378050188,1754697040677,-460.0,0.00023056,2]
[378050189,1754697040687,-460.0,0.00023056,2]
[378050190,1754697040696,-460.0,0.00023056,2]
[378050191,1754697040706,-460.0,0.00023056,2]
[378050192,1754697040715,-1108.77,0.00023056,2]
[378050193,1754697040725,-724.44,0.00023056,2]
[378050194,1754697040735,-460.0,0.00023056,2]
[378050195,1754697040745,-460.0,0.00023056,2]
[378050196,1754697040755,-460.0,0.00023056,2]
[378050197,1754697040764,-587.89,0.00023056,2]
[378050198,1754697040774,-460.0,0.00023056,2]
[378050199,1754697040783,-561.96,0.00023056,2]
[378050200,1754697040792,-460.0,0.00023056,2]
[378050201,1754697040802,-460.0,0.00023056,2]
[378050202,1754697040812,-460.0,0.00023056,2]
[378050203,1754697040822,-541.2,0.00023056,2]
[378050204,1754697040832,-4526.81,0.00023127,2]
[378050205,1754697040841,-151.0,0.00023128,2]
[378050206,1754697040851,-151.0,0.00023128,2]
[378050207,1754697040866,-151.0,0.00023128,2]
[378050208,1754697040875,-151.0,0.00023128,2]
[378050209,1754697040885,-2183.31810187,0.00023128,2]
[378050210,1754697040895,-151.0,0.00023128,2]
[378050211,1754697040906,-151.0,0.00023128,2]
[378050212,1754697040916,-151.0,0.00023128,2]
[378050213,1754697040925,-151.0,0.00023128,2]
[378050214,1754697040937,-151.0,0.00023128,2]
[378050215,1754697040947,-250.0,0.00023128,2]
[378050216,1754697040956,-151.0,0.00023128,2]
[378050217,1754697040966,-151.0,0.00023128,2]
[378050218,1754697040982,-250.0,0.00023128,2]
[378050219,1754697040992,-17652.73810198,0.00023128,2]
[378050220,1754697041001,-151.0,0.00023128,2]
[378050221,1754697041011,-250.0,0.00023128,2]
[378050222,1754697041020,-151.0,0.00023128,2]
[378050223,1754697041030,-151.0,0.00023128,2]
[378050224,1754697041039,-250.0,0.00023128,2]
[378050225,1754697041049,-151.0,0.00023128,2]
[378050226,1754697041058,-151.0,0.00023128,2]
[378050227,1754697041068,-250.0,0.00023128,2]
[378050228,1754697041083,-250.0,0.00023128,2]
[378050229,1754697041098,-151.0,0.00023128,2]
[378050230,1754697041108,-250.0,0.00023128,2]
[378050231,1754697041117,-151.0,0.00023128,2]
[378050232,1754697041127,-250.0,0.00023128,2]
[378050233,1754697041136,-151.0,0.00023128,2]
[378050234,1754697041145,-151.0,0.00023128,2]
[378050235,1754697041154,-250.0,0.00023128,2]
[378050236,1754697041164,-186.36417306,0.00023128,2]
[378050237,1754697041173,-151.0,0.00023128,2]
[378050238,1754697041183,-151.0,0.00023128,2]
[378050239,1754697041192,-151.0,0.00023128,2]
[378050240,1754697041201,-151.0,0.00023128,2]
[378050241,1754697041210,-151.0,0.00023128,2]
[378050242,1754697041220,-151.0,0.00023128,2]
[378050243,1754697041229,-151.0,0.00023128,2]
[378050244,1754697041239,-198.0430543,0.00023173,2]
[378050245,1754697041249,-500.0,0.00023173,2]
[378050246,1754697041259,-453.53099303,0.00023183,2]
[378050247,1754697041268,-460.0,0.00023204,2]
[378050248,1754697041277,-460.0,0.0002333,2]
[378050249,1754697041287,-460.0,0.0002333,2]
[378050250,1754697041296,-460.0,0.0002333,2]
[378050251,1754697041306,-460.0,0.0002333,2]
[378050252,1754697041315,-460.0,0.0002333,2]
[378050253,1754697041326,-460.0,0.0002333,2]
[378050254,1754697041336,-1108.77,0.0002333,2]
[378050255,1754697041345,-724.44,0.0002333,2]
[378050256,1754697041355,-460.0,0.0002333,2]
[378050257,1754697041364,-460.0,0.0002333,2]
[378050258,1754697041374,-460.0,0.0002333,2]
[378050259,1754697041383,-587.89,0.0002333,2]
[378050260,1754697041392,-460.0,0.0002333,2]
[378050261,1754697041401,-561.96,0.0002333,2]
[378050262,1754697041410,-460.0,0.0002333,2]
[378050263,1754697041419,-460.0,0.0002333,2]
[378050264,1754697041429,-587.34000014,0.0002333,2]
[378050265,1754697041438,-541.2,0.0002333,2]
[378050266,1754697041447,-237.90109456,0.00023345,2]
[378050267,1754697041457,-200.0,0.00023346,15]
[378050268,1754697041467,-300.0,0.00023346,15]
[378050269,1754697041476,-1500.0,0.00023368,2]
[378050270,1754697041486,-1000.0,0.00023521,2]
[378050271,1754697041495,-1000.0,0.00023562,2]
[378050272,1754697041505,-460.0,0.00023604,2]
[378050273,1754697041514,-460.0,0.00023604,2]
[378050274,1754697041524,-460.0,0.00023604,2]
[378050275,1754697041533,-460.0,0.00023604,2]
[378050276,1754697041543,-460.0,0.00023604,2]
[378050277,1754697041552,-460.0,0.00023604,2]
[378050278,1754697041562,-1108.77,0.00023604,2]
[378050279,1754697041572,-724.44,0.00023604,2]
[378050280,1754697041581,-460.0,0.00023604,2]
[378050281,1754697041590,-460.0,0.00023604,2]
[378050282,1754697041600,-460.0,0.00023604,2]
[378050283,1754697041621,-587.89,0.00023604,2]
[378050284,1754697041635,-460.0,0.00023604,2]
[378050285,1754697041645,-561.96,0.00023604,2]
[378050286,1754697041654,-465.46,0.00023604,2]
[378050287,1754697041663,-460.0,0.00023604,2]
[378050288,1754697041673,-541.2,0.00023604,2]
[378050289,1754697041682,-237.90109456,0.00023663,2]
[378050290,1754697041691,-500.0,0.00023721,2]
[378050291,1754697041700,-346.77,0.00023868,3]
[378050292,1754697041710,-173.39,0.00023868,3]
[378050293,1754697041719,-520.17,0.00023868,3]
[378050294,1754697041728,-263.43427401,0.00023872,2]
[378050295,1754697041738,-768.77087034,0.00023872,2]
[378050296,1754697041747,-768.77087034,0.00023872,2]
[378050297,1754697041757,-768.77087034,0.00023872,2]
[378050298,1754697041767,-768.77087034,0.00023872,2]
[378050299,1754697041777,-768.77087034,0.00023872,2]
[378050300,1754697041786,-768.77087034,0.00023872,2]
[378050301,1754697041795,-768.77087034,0.00023872,2]
[378050302,1754697041805,-768.77087034,0.00023872,2]
[378050303,1754697041814,-768.77087034,0.00023872,2]
[378050304,1754697041823,-768.77087034,0.00023872,2]
[378050305,1754697041832,-768.77087034,0.00023872,2]
[378050306,1754697041841,-768.77087034,0.00023872,2]
[378050307,1754697041851,-768.77087034,0.00023872,2]
[378050308,1754697041865,-768.77087034,0.00023872,2]
[378050309,1754697041874,-768.77087034,0.00023872,2]
[378050310,1754697041883,-768.77087034,0.00023872,2]
[378050311,1754697041892,-774.26209083,0.00023872,2]
[378050312,1754697041902,-774.26209083,0.00023872,2]
[378050313,1754697041911,-774.26209083,0.00023872,2]
[378050314,1754697041921,-774.26209083,0.00023872,2]
[378050315,1754697041931,-774.26209083,0.00023872,2]
[378050316,1754697041941,-774.26209083,0.00023872,2]
[378050317,1754697041951,-774.26209083,0.00023872,2]
[378050318,1754697041962,-774.26209083,0.00023872,2]
[378050319,1754697041971,-774.26209083,0.00023872,2]
[378050320,1754697041981,-923.63992856,0.00023872,2]
[378050321,1754697041990,-923.63992856,0.00023872,2]
[378050322,1754697041999,-923.63992856,0.00023872,2]
[378050323,1754697042009,-151.0,0.00023872,7]
[378050324,1754697042023,-151.0,0.00023872,7]
[378050325,1754697042033,-151.0,0.00023872,7]
[378050326,1754697042042,-151.0,0.00023872,7]
[378050327,1754697042052,-500.67242044,0.00023873,2]
[378050328,1754697042062,-500.0,0.00023873,2]
[378050329,1754697042071,-500.0,0.00023873,2]
[378050330,1754697042081,-500.0,0.00023873,2]
[378050331,1754697042090,-500.0,0.00023873,2]
[378050332,1754697042099,-500.0,0.00023873,2]
[378050333,1754697042109,-500.0,0.00023873,2]
[378050334,1754697042118,-500.0,0.00023873,2]
[378050335,1754697042128,-500.0,0.00023873,2]
[378050336,1754697042137,-500.0,0.00023873,2]
[378050337,1754697042147,-500.0,0.00023873,2]
[378050338,1754697042157,-500.0,0.00023873,2]
[378050339,1754697042166,-500.0,0.00023873,2]
[378050340,1754697042175,-500.0,0.00023873,2]
[378050341,1754697042184,-500.0,0.00023873,2]
[378050342,1754697042194,-649.92277027,0.00023873,2]
[378050343,1754697042203,-500.0,0.00023873,2]
[378050344,1754697042212,-500.0,0.00023873,2]
[378050345,1754697042222,-500.0,0.00023873,2]
[378050346,1754697042231,-500.0,0.00023873,2]
[378050347,1754697042240,-500.0,0.00023873,2]
[378050348,1754697042250,-150.0,0.00023873,2]
[378050349,1754697042259,-500.0,0.00023873,2]
[378050350,1754697042269,-500.0,0.00023873,2]
[378050351,1754697042278,-500.0,0.00023873,2]
[378050352,1754697042398,-500.0,0.00023873,2]
[378050353,1754697042408,-500.0,0.00023873,2]
[378050354,1754697042417,-500.0,0.00023873,2]
[378050355,1754697042426,-500.0,0.00023873,2]
[378050356,1754697042436,-500.0,0.00023873,2]
[378050357,1754697042445,-500.0,0.00023873,2]
[378050358,1754697042454,-500.0,0.00023873,2]
[378050359,1754697042464,-500.0,0.00023873,2]
[378050360,1754697042473,-500.0,0.00023873,2]
[378050361,1754697042482,-500.0,0.00023873,2]
[378050362,1754697042496,-500.0,0.00023873,2]
[378050363,1754697042512,-500.0,0.00023873,2]
[378050364,1754697042522,-500.0,0.00023873,2]
[378050365,1754697042531,-151.0,0.00023877,7]
[378050366,1754697042540,-151.0,0.00023877,7]
[378050367,1754697042549,-151.0,0.00023877,7]
[378050369,1754697042558,-151.0,0.00023877,7]
[378050370,1754697042567,-151.0,0.00023877,7]
[378050372,1754697042576,-151.0,0.00023877,7]
[378050374,1754697042586,-151.0,0.00023877,7]
[378050376,1754697042597,-151.0,0.00023877,7]
[378050378,1754697042615,-151.0,0.00023877,7]
[378050379,1754697042635,-227.013416,0.00023877,7]
[378050381,1754697042644,-151.0,0.00023877,7]
[378050382,1754697042653,-151.0,0.00023877,7]
[378050383,1754697042663,-151.0,0.00023877,7]
[378050384,1754697042672,-168.58526,0.00023877,7]
[378050385,1754697042681,-151.0,0.00023877,7]
[378050386,1754697042690,-151.0,0.00023877,7]
[378050387,1754697042699,-151.0,0.00023877,7]
[378050388,1754697042709,-151.0,0.00023877,7]
[378050389,1754697042718,-460.0,0.00023878,2]
[378050390,1754697042727,-460.0,0.00023878,2]
[378050391,1754697042736,-460.0,0.00023878,2]
[378050392,1754697042746,-460.0,0.00023878,2]
[378050393,1754697042755,-460.0,0.00023878,2]
[378050394,1754697042765,-460.0,0.00023878,2]
[378050395,1754697042774,-1108.77,0.00023878,2]
[378050396,1754697042783,-724.44,0.00023878,2]
[378050397,1754697042793,-460.0,0.00023878,2]
[378050398,1754697042802,-460.0,0.00023878,2]
[378050399,1754697042811,-460.0,0.00023878,2]
[378050400,1754697042820,-587.89,0.00023878,2]
[378050401,1754697042830,-460.0,0.00023878,2]
[378050402,1754697042839,-561.96,0.00023878,2]
[378050403,1754697042849,-460.0,0.00023878,2]
[378050404,1754697042863,-541.2,0.00023878,2]
[378050406,1754697042872,-2000.0,0.00023916,2]
[378050408,1754697042882,-510.68099357,0.0002395,2]
[378050410,1754697042892,-237.90109456,0.0002398,2]
[378050412,1754697042902,-280.654298,0.00024023,7]
[378050414,1754697042911,-280.654298,0.00024023,7]
[378050416,1754697042920,-151.0,0.00024024,7]
[378050418,1754697042931,-151.0,0.00024024,7]
[378050420,1754697042940,-151.0,0.00024024,7]
[378050422,1754697042950,-661.31688268,0.00024027,2]
[378050424,1754697042959,-2642.6222632,0.00024027,2]
[378050426,1754697042968,-151.0,0.00024027,7]
[378050428,1754697042977,-151.0,0.00024027,7]
[378050430,1754697042987,-150.0,0.00024029,2]
[378050432,1754697042996,-151.0,0.0002403,7]
[378050434,1754697043005,-151.0,0.0002403,7]
[378050436,1754697043015,-151.0,0.0002403,7]
[378050438,1754697043024,-151.0,0.0002403,2]
[378050440,1754697043033,-151.0,0.0002403,2]
[378050442,1754697043042,-198.35421511,0.0002403,2]
[378050444,1754697043051,-151.0,0.0002403,2]
[378050446,1754697043061,-151.0,0.0002403,2]
[378050448,1754697043070,-198.29692576,0.0002403,2]
[378050450,1754697043079,-198.64985678,0.0002403,2]
[378050452,1754697043088,-151.0,0.0002403,2]
[378050454,1754697043098,-151.0,0.0002403,2]
[378050456,1754697043107,-151.0,0.0002403,2]
[378050458,1754697043116,-151.0,0.0002403,2]
[378050460,1754697043126,-151.0,0.0002403,2]
[378050462,1754697043135,-1016.30196721,0.00024068,2]
[378050464,1754697043144,-500.0,0.0002411,2]
[378050465,1754697043154,-1538.89330464,0.00024124,2]
[378050468,1754697043163,-460.0,0.00024152,2]
[378050469,1754697043172,-460.0,0.00024152,2]
[378050472,1754697043181,-460.0,0.00024152,2]
[378050474,1754697043191,-460.0,0.00024152,2]
[378050475,1754697043203,-460.0,0.00024152,2]
[378050478,1754697043212,-151.0,0.00024152,7]
[378050480,1754697043222,-151.0,0.00024152,7]
[378050481,1754697043230,-151.0,0.00024152,7]
[378050484,1754697043242,-460.0,0.00024152,2]
[378050485,1754697043250,-1108.77,0.00024152,2]
[378050488,1754697043260,-724.44,0.00024152,2]
[378050489,1754697043269,-460.0,0.00024152,2]
[378050492,1754697043279,-460.0,0.00024152,2]
[378050494,1754697043288,-460.0,0.00024152,2]
[378050496,1754697043298,-587.89,0.00024152,2]
[378050498,1754697043307,-460.0,0.00024152,2]
[378050500,1754697043317,-561.96,0.00024152,2]
[378050502,1754697043326,-199.435324,0.00024152,7]
[378050504,1754697043335,-460.0,0.00024152,2]
[378050506,1754697043345,-151.0,0.00024152,7]
[378050508,1754697043354,-541.2,0.00024152,2]
[378050510,1754697043363,-1449.97228919,0.00024193,2]
[378050512,1754697043373,-151.0,0.00024244,7]
[378050514,1754697043382,-177.082696,0.00024244,7]
[378050516,1754697043392,-151.0,0.00024244,7]
[378050518,1754697043401,-151.0,0.00024244,7]
[378050520,1754697043411,-151.0,0.00024244,7]
[378050522,1754697043420,-151.0,0.00024254,7]
[378050524,1754697043429,-151.0,0.00024254,7]
[378050526,1754697043438,-151.0,0.00024254,7]
[378050528,1754697043448,-2149.0,0.00024261,2]
[378050530,1754697043457,-636.0,0.00024261,2]
[378050532,1754697043467,-971.0,0.00024261,2]
[378050534,1754697043476,-408.0,0.00024261,2]
[378050536,1754697043485,-414.462,0.00024261,2]
[378050538,1754697043495,-250.0,0.00024261,2]
[378050540,1754697043507,-205.622,0.00024261,2]
[378050542,1754697043515,-280.654298,0.00024261,7]
[378050544,1754697043524,-280.654298,0.00024261,7]
[378050546,1754697043534,-600.0,0.00024273,2]
[378050548,1754697043543,-500.0,0.00024273,2]
[378050550,1754697043552,-160.0,0.00024286,2]
[378050552,1754697043561,-821.17443659,0.00024293,2]
[378050554,1754697043570,-151.0,0.00024297,7]
[378050556,1754697043579,-237.90109456,0.00024297,2]
[378050558,1754697043588,-4666.3443554,0.00024297,2]
[378050560,1754697043598,-151.0,0.000243,7]
[378050562,1754697043606,-151.0,0.000243,7]
[378050564,1754697043616,-151.0,0.00024304,2]
[378050566,1754697043624,-151.0,0.00024304,2]
[378050568,1754697043633,-274.41890689,0.00024304,2]
[378050570,1754697043642,-151.0,0.00024304,2]
[378050572,1754697043651,-151.0,0.00024304,2]
[378050574,1754697043661,-151.0,0.00024304,2]
[378050576,1754697043671,-160.0,0.00024361,2]
[378050578,1754697043681,-441.18,0.00024362,2]
[378050580,1754697043690,-500.0,0.00024373,2]
[378050582,1754697043700,-500.0,0.00024373,2]
[378050584,1754697043709,-500.0,0.00024373,2]
[378050587,1754697043720,-500.0,0.00024373,2]
[378050589,1754697043729,-500.0,0.00024373,2]
[378050590,1754697043739,-151.0,0.00024373,7]
[378050593,1754697043748,-151.0,0.00024373,7]
[378050594,1754697043758,-151.0,0.00024373,7]
[378050597,1754697043768,-151.0,0.00024373,7]
[378050599,1754697043777,-2000.0,0.00024381,2]
[378050601,1754697043787,-2000.0,0.00024381,2]
[378050603,1754697043796,-2000.0,0.00024381,2]
[378050604,1754697043805,-2000.0,0.00024381,2]
[378050607,1754697043815,-2000.0,0.00024381,2]
[378050609,1754697043824,-151.0,0.00024381,7]
[378050611,1754697043833,-151.0,0.00024381,7]
[378050613,1754697043842,-151.0,0.00024381,7]
[378050615,1754697043852,-151.0,0.00024381,7]
[378050616,1754697043864,-21146.50352671,0.00024397,2]
[378050637,1754697044764,-141557.01283724,0.00024397,2]
[378050638,1754697044776,-1773.7663556,0.00024397,2]
[378050639,1754697044978,-438.58761647,0.00024397,2]
[378050640,1754697044989,-24728.23756104,0.00024397,2]
[378050694,1754697046258,-9326.78256612,0.00024397,2]
[378050703,1754697046326,-650.29398231,0.00024397,2]
[378050734,1754697057449,460.0,0.00022234,2]
[378050735,1754697057735,460.0,0.00022235,2]
[378050736,1754697061624,460.0,0.00022235,2]
[378050737,1754697103483,150.439513,0.00026615,30]
[378050738,1754697105478,157.65662547,0.00022297,2]
[378050739,1754697133043,460.0,0.00022234,2]
[378050741,1754697431687,164.824865,0.00013699,2]
[378050742,1754697587902,302.69733596,0.000189,2]
[378050743,1754697587944,303.18129483,0.00019089,2]
[378050744,1754697631954,151.56690796,0.0002,2]
[378050745,1754697672215,25000.0,0.00031647,30]
[378050746,1754698149843,-204.63058983,0.00022133,2]
[378050747,1754698149866,-1200.0,0.00022233,2]
[378050748,1754698149887,-300.0,0.00022233,2]
[378050749,1754698149908,-300.0,0.00022233,2]
[378050750,1754698149930,-300.0,0.00022233,2]
[378050751,1754698149952,-460.0,0.00022234,2]
[378050752,1754698149972,-470.35407382,0.00022234,2]
[378050753,1754698149993,-562.06501111,0.00022234,2]
[378050754,1754698150013,-460.0,0.00022234,2]
[378050755,1754698150034,-460.0,0.00022234,2]
[378050756,1754698150054,-460.0,0.00022234,2]